[Event "10th Cherry Blossom Classic 2023"]
[Site "Dulles"]
[Date "2023.05.28"]
[Round "6.16"]
[White "Roselli Mailhe, Bernardo"]
[Black "Slade, Theodore"]
[Result "1-0"]
[ECO "D50"]
[WhiteElo "2380"]
[BlackElo "2021"]
[Annotator "TA"]
[PlyCount "107"]
[EventDate "2023.05.24"]
[EventType "swiss"]
[EventCountry "USA"]
[SourceTitle "playchess.com"]
[Source "ChessBase"]
[SourceQuality "1"]
[TimeControl "5400+30"]

{[%evp 14,107,17,14,20,24,18,0,0,0,1,1,4,3,4,8,15,2,0,10,2,15,10,10,44,30,33,29,36,43,102,101,102,99,110,112,101,103,99,43,104,88,109,112,111,106,182,114,121,108,106,102,245,242,530,514,505,501,656,641,610,502,29964,29961,29976,29977,29977,29978,29978,29971,29970,29972,29970,29973,29975,29976,29976,29976,29979,29977,29976,29976,29980,29981,29981,29982,29982,29983,29984,29984,29985,29986,29986,29985,29988,29989]} 1. d4 {[%emt 0:00:23]} Nf6 {[%emt 0:00:07]} 2. c4 {[%emt 0:00:02]} e6 {[%emt 0:00:10]} 3. Nf3 {[%emt 0:00:04]} d5 {[%emt 0:00:09]} 4. Nc3 {[%emt 0:00:05]} c5 {[%emt 0:00:08]} 5. cxd5 {[%emt 0:00:11]} cxd4 {[%emt 0:00:13]} 6. Qxd4 {[%emt 0:06:40]} exd5 {[%emt 0:00:11]} 7. Bg5 {[%emt 0:00:13]} Be7 {[%emt 0:01:00]} 8. e3 {[%emt 0:00:28]} O-O {[%emt 0:02:29] D50: Queen's Gambit Declined: Dutch-Peruvian Gambit.} 9. Be2 {[%emt 0:00:04]} Nc6 {[%emt 1:30:33]} 10. Qd1 {[%emt 0:00:15]} h6 {[%emt 0:00:00] The position is equal.} 11. Bh4 {[%emt 0:00:10][%cal Bg5h4,Bh4g3,Bg3e5,Be5c3][%mdl 32] [#]} Bg4 $146 {[%emt 0:00:00]} ({Predecessor:} 11... Be6 12. O-O Rc8 13. a3 Ne4 14. Bxe7 Nxe7 15. Nxe4 dxe4 16. Nd4 Bd5 17. Qd2 Qb6 {1-0 Mamedyarov,S (2767)-Vidit,S (2727) Wch Blitz Warsaw 2021 (5)}) 12. O-O {[%emt 0:12:15]} Bxf3 {[%emt 0:00:00]} 13. Bxf3 {[%emt 0:01:30][%cal Oh4f6]} d4 $1 {[%emt 0:00:00]} 14. exd4 {[%emt 0:02:47]} Qxd4 {[%emt 0:00:00]} 15. Bg3 {[%emt 0:05:15]} Qb4 {[%emt 0:00:00]} 16. Bxc6 {[%emt 0:05:36]} bxc6 {[%emt 0:00:00]} 17. Qc2 {[%emt 0:00:21]} Nd5 {[%emt 0:00:00]} 18. Be5 {[%emt 0:04:57]} f6 {[%emt 0:00:00]} 19. Nxd5 {[%emt 0:03:13]} cxd5 {[%emt 0:00:00]} 20. Bc3 {[%emt 0:00:04]} Qc4 {[%emt 0:00:00]} 21. Rfd1 {[%emt 0:02:50]} Rac8 {[%emt 0:00:00]} (21... Bc5 $14) 22. Qf5 $36 {[%emt 0:02:22][%mdl 2048] Black is under strong pressure.} Rfd8 {[%emt 0:00:00]} 23. Rd4 {[%emt 0:05:04] Prevents Qe4.} Qb5 {[%emt 0:00:00]} 24. Rad1 {[%emt 0:12:38]} Rc5 {[%emt 0:00:00]} 25. h4 {[%emt 0:04:47]} Qd7 {[%emt 0:00:00]} 26. Qg6 {[%emt 0:01:07]} ({Better is} 26. Qf3 $16) 26... Bf8 {[%emt 0:00:00]} (26... Bd6 $14) 27. Qd3 {[%emt 0:10:56] White has more active pieces.} Qf7 {[%emt 0:03:10]} 28. g3 {[%emt 0:01:58]} a5 {[%emt 0:04:02]} 29. Qf3 {[%emt 0:02:43]} Rb5 {[%emt 0:00:48]} (29... Qd7 $16) 30. Kg2 {[%emt 0:00:13]} ({White should try} 30. a4 $1 $18 {[%cal Ra4b5]} Rc5 31. b4 axb4 32. Bxb4) 30... Rc5 {[%emt 0:00:15]} 31. Ra4 {[%emt 0:00:44]} Qc7 {[%emt 0:00:35]} 32. Rg4 {[%emt 0:00:20]} Kh8 {[%emt 0:00:25] [#] This move loses the game for Black.} (32... Kf7 $16) 33. Bxf6 $1 $18 {[%emt 0:02:10][%mdl 64] Demolition} gxf6 {[%emt 0:01:08]} (33... Rd7 {was necessary.}) 34. Qxf6+ {[%emt 0:00:07]} Bg7 {[%emt 0:00:05] [#]} 35. Rxg7 {[%emt 0:00:10][%mdl 576] Deflection} Qxg7 {[%emt 0:01:00]} (35... Rc6 36. Qxh6+) 36. Qxd8+ {[%emt 0:00:06]} Kh7 {[%emt 0:00:04]} 37. Rxd5 {[%emt 0:02:12]} Rxd5 {[%emt 0:00:05]} (37... Qb7 $18 38. Qd7+ Qxd7 39. Rxd7+ Kg6 40. Rd6+ Kg7) 38. Qxd5 {[%emt 0:00:05] White mates.} Qxb2 {[%emt 0:00:49]} 39. Qxa5 {[%emt 0:00:20] KQ-KQ} Qb7+ {[%emt 0:00:19]} 40. Kh2 {[%emt 0:00:10]} Qf7 {[%emt 0:00:34]} 41. Qd2 {[%emt 0:00:38]} Qa7 {[%emt 0:00:33]} 42. Qc2+ {[%emt 0:00:13]} Kg7 {[%emt 0:00:09]} 43. a4 {[%emt 0:00:06][%cal Ba2a4,Ba4a5,Ba5a6][%mdl 32]} Qa5 {[%emt 0:00:22]} 44. Qc6 {[%emt 0:01:02]} Qa7 {[%emt 0:01:21]} 45. Kg2 {[%emt 0:00:26]} Kh7 {[%emt 0:00:35]} 46. Qe4+ {[%emt 0:00:31]} Kg7 {[%emt 0:00:09]} 47. Qe5+ {[%emt 0:00:12]} Kh7 {[%emt 0:00:08]} 48. a5 {[%emt 0:01:20]} Qb7+ {[%emt 0:00:04]} 49. Kg1 {[%emt 0:00:48]} Qb1+ {[%emt 0:00:18] [#]} 50. Kh2 $1 {[%emt 0:00:14]} Qf1 {[%emt 0:02:52]} 51. Qc5 {[%emt 0:00:25]} Kg7 {[%emt 0:00:14]} 52. Qb6 {[%emt 0:00:08]} Qe2 {[%emt 0:00:30]} 53. a6 {[%emt 0:00:11]} Qf3 {[%emt 0:00:10]} 54. Qb7+ {[%emt 0:00:15] Weighted Error Value: White=0.08 (flawless) /Black=0.41} 1-0

[Event "10th Cherry Blossom Classic 2023"]
[Site "Dulles"]
[Date "2023.05.28"]
[Round "6.17"]
[White "Aripov, Iskandar"]
[Black "Diao, Matthew Guo"]
[Result "0-1"]
[ECO "D45"]
[WhiteElo "2211"]
[BlackElo "1973"]
[Annotator "TA"]
[PlyCount "114"]
[EventDate "2023.05.24"]
[EventType "swiss"]
[EventCountry "USA"]
[SourceTitle "playchess.com"]
[Source "ChessBase"]
[SourceQuality "1"]
[TimeControl "5400+30"]

{[%evp 14,114,15,0,-13,-57,-68,-50,-25,-63,-52,-71,-64,-80,-79,-91,-77,-87,-52,-64,-44,-31,-29,-87,-4,-187,-183,-189,-177,-192,-176,-165,-175,-173,-147,-207,-206,-198,-197,-185,-147,-149,-149,-203,-198,-213,-140,-139,-95,-95,-96,-145,-52,-126,-44,-44,0,0,0,-16,-18,-19,-16,-54,-35,-138,-3,-77,-69,-72,0,-114,-83,-83,-85,-3415,-1767,-29962,-12835,-29983,-29985,-29985,-29982,-29985,-29983,-29983,-29984,-29984,-29985,-29985,-29986,-29986,-29985,-29990,-29991,-29991,-29991,-29991,-29991,-29991,-29992,-29992,-29993]} 1. d4 {[%emt 0:00:02]} d5 {[%emt 0:02:05]} 2. c4 {[%emt 0:00:07]} c6 {[%emt 0:00:06]} 3. Nf3 {[%emt 0:00:35]} Nf6 {[%emt 0:00:10]} 4. e3 {[%emt 0:01:57]} e6 {[%emt 0:01:04]} 5. Nc3 {[%emt 0:03:07]} Nbd7 {[%emt 0:00:20]} 6. Qc2 {[%emt 0:06:10]} Bd6 {[%emt 0:00:23]} 7. g4 {[%emt 0:00:48]} h6 {[%emt 0:14:04]} 8. Rg1 {[%emt 0:00:45] 8.Rg1 is better than 8.Bd2.} e5 {[%emt 0:42:33] D45: Semi-Slav: 5 e3.} 9. h4 {[%emt 0:19:29]} exd4 $1 {[%emt 0:12:33]} 10. exd4 {[%emt 0:01:02]} Qe7+ {[%emt 0:03:55] [#] Black is slightly better.} 11. Qe2 $146 {[%emt 0:32:24]} ({Predecessor:} 11. Kd1 Ne4 12. cxd5 Nxc3+ 13. bxc3 Nf6 14. dxc6 Bxg4 15. Rxg4 Nxg4 16. cxb7 Qxb7 17. Qe2+ {½-½ Reichert,T (2378)-Menendez Rodriguez,G (2383) WLS/SRCCC/21/D2 2021 [1]}) 11... Qxe2+ {[%emt 0:06:28]} 12. Bxe2 {[%emt 0:00:06]} dxc4 {[%emt 0:00:34]} 13. g5 {[%emt 0:00:50]} hxg5 {[%emt 0:02:03]} 14. hxg5 {[%emt 0:00:08]} ({Reject} 14. Rxg5 Kf8 15. Be3 Nb6 $17) 14... Nd5 {[%emt 0:01:08]} 15. Bxc4 {[%emt 0:00:11]} Nxc3 {[%emt 0:01:53]} (15... N7b6 {is more complex.} 16. Bb3 Rh3 17. Ke2 Be6) 16. bxc3 {[%emt 0:00:06]} Nb6 {[%emt 0:00:08]} 17. Bb3 {[%emt 0:04:38]} Bf5 {[%emt 0:01:26]} (17... Rh3 {seems wilder.} 18. Ke2 Bf5 19. Be3 Nd5) 18. c4 {[%emt 0:05:54]} (18. Be3 $11) 18... Bb4+ {[%emt 0:03:39]} ({Black should play} 18... Rh3 $17 19. c5 Rxf3 20. cxd6 Kd7 21. Bxf7 Rh8) 19. Ke2 {[%emt 0:02:42] White is weak on the light squares} (19. Bd2 $11 Ba3 20. Bc1 Bxc1 21. Rxc1) 19... Bc3 $36 {[%emt 0:00:39][%mdl 2048] Black is really pushing.} 20. Be3 {[%emt 0:01:52]} Bxa1 {[%emt 0:00:09]} 21. Rxa1 {[%emt 0:00:00]} O-O-O {[%emt 0:01:37]} 22. Ne5 {[%emt 0:00:20]} Be6 {[%emt 0:00:31]} 23. Rc1 {[%emt 0:01:03]} Rhe8 {[%emt 0:01:23]} 24. d5 {[%emt 0:02:31] [#]} (24. a4 $17 {was worth a try.}) 24... Bxd5 $1 {[%emt 0:00:58][%mdl 64] Discovered Attack} 25. cxd5 {[%emt 0:00:54]} Rxe5 {[%emt 0:00:06]} 26. dxc6 {[%emt 0:00:18]} bxc6 {[%emt 0:00:25]} 27. Bxf7 {[%emt 0:01:31]} Kb7 {[%emt 0:00:55]} 28. g6 {[%emt 0:01:49]} (28. Rb1 $17) 28... Nd5 {[%emt 0:01:03]} 29. Rh1 {[%emt 0:01:24]} Nf6 {[%emt 0:02:01] Prevents Rh7.} 30. Rb1+ {[%emt 0:04:47]} Rb5 {[%emt 0:00:32]} 31. Rxb5+ {[%emt 0:03:20]} cxb5 $17 {[%emt 0:00:01][%mdl 4096] Endgame KRN-KB} 32. Bc5 {[%emt 0:00:01]} ({Better is} 32. Bg5 Rd6 33. Bf4) 32... Rc8 {[%emt 0:00:43]} (32... Ng8 $17 33. Kf3 Nh6) 33. Be7 {[%emt 0:01:44]} (33. Bd4 $15 Rc6 34. f4) 33... Nh5 {[%emt 0:00:32]} ({Black should try} 33... Ng4 $17 34. Kf3 Nh6 35. Bd5+ Kc7) 34. Kf3 $1 $15 {[%emt 0:00:55]} Rc7 {[%emt 0:00:24]} 35. Bg5 {[%emt 0:01:44] Strongly threatening Kg4.} Rc8 {[%emt 0:00:43]} 36. Kg4 {[%emt 0:01:45]} Rh8 {[%emt 0:00:04]} 37. Kf5 {[%emt 0:01:25]} Kc6 {[%emt 0:00:14]} 38. Ke6 {[%emt 0:00:23]} a5 {[%emt 0:00:17]} 39. f4 {[%emt 0:00:26]} (39. Ke7 $15) 39... Kc5 {[%emt 0:00:24]} (39... b4 $17 {Threatens to win with ...a4.} 40. Kf5 Kd6) 40. Be7+ {[%emt 0:00:26]} (40. f5 $11) 40... Kd4 $17 {[%emt 0:00:09]} 41. f5 {[%emt 0:00:12] [#]} Rb8 {[%emt 0:00:24]} (41... Ra8 $1 $17 {And now ...b4 would win.} 42. f6 Ra6+ 43. Kf5 Nxf6) 42. Bd6 {[%emt 0:00:31]} (42. f6 $11) 42... Rb7 {[%emt 0:00:33] Black converts the advantage convincingly.} 43. Be5+ {[%emt 0:00:10]} Ke4 {[%emt 0:00:13] White must now prevent ...Rb6+.} 44. Bxg7 $2 {[%emt 0:00:47][%mdl 8192]} Nxg7+ {[%emt 0:00:04]} 45. Kf6 {[%emt 0:00:12]} Nxf5 {[%emt 0:00:06] ( -> ...a4)} 46. Be6 {[%emt 0:00:43]} Rb6 {[%emt 0:00:32] Black mates.} 47. Kf7 {[%emt 0:00:23]} Nh6+ {[%emt 0:00:09]} 48. Kf6 {[%emt 0:00:27]} Rxe6+ {[%emt 0:00:16]} 49. Kxe6 {[%emt 0:00:05] KN-KPP} b4 {[%emt 0:00:41]} 50. g7 {[%emt 0:00:05]} a4 {[%emt 0:00:17][%cal Ba5a4,Ba4b3,Bb3b2][%mdl 32]} 51. Kf6 {[%emt 0:00:08]} b3 {[%emt 0:00:22]} 52. axb3 {[%emt 0:00:19]} axb3 {[%emt 0:00:08] KN-KP} 53. Kg5 {[%emt 0:01:43]} Ng8 {[%emt 0:00:18]} 54. Kg6 {[%emt 0:00:01]} b2 {[%emt 0:00:35]} 55. Kf7 {[%emt 0:00:03]} Nh6+ {[%emt 0:00:08]} ({Weaker is} 55... b1=B 56. Kxg8 Ba2+ 57. Kh8 $11) 56. Kg6 {[%emt 0:00:01]} Nf5 {[%emt 0:00:06]} ({And not} 56... b1=B 57. Kxh6 Ba2 58. Kh7 $11) 57. g8=Q {[%emt 0:00:05]} Ne7+ {[%emt 0:00:04] Weighted Error Value: White=0.56/Black=0.39} (57... b1=B 58. Kf6 Bd3 59. Qe6+ Kf4 60. Qd7 $18) 0-1

[Event "10th Cherry Blossom Classic 2023"]
[Site "Dulles"]
[Date "2023.05.28"]
[Round "6.18"]
[White "ADU, Oladapo"]
[Black "Laddha, Yash Jayesh"]
[Result "1-0"]
[ECO "A07"]
[WhiteElo "2081"]
[BlackElo "2195"]
[Annotator "TA"]
[PlyCount "65"]
[EventDate "2023.05.24"]
[EventType "swiss"]
[EventCountry "USA"]
[SourceTitle "playchess.com"]
[Source "ChessBase"]
[SourceQuality "1"]
[TimeControl "5400+30"]

{[%evp 9,65,5,23,-16,-14,-9,-13,-44,-33,-35,-41,-49,-26,-19,-27,-21,-21,-29,-29,-26,-26,-69,-67,-85,-95,-105,-91,-114,-114,-169,-88,-122,-103,-160,-114,-117,29986,-316,-16,-37,1109,625,751,-1419,613,593,994,929,1716,1365,1410,1372,5643,1314,1322,1114,12837,29962]} 1. Nf3 {[%emt 1:31:00]} d5 {[%emt 0:00:05]} 2. g3 {[%emt 0:00:00]} Nd7 {[%emt 0:00:04]} 3. Bg2 {[%emt 0:00:00]} e5 {[%emt 0:00:17]} 4. d3 {[%emt 0:00:00]} Ngf6 {[%emt 0:00:04]} 5. O-O {[%emt 0:00:00]} Bc5 {[%emt 0:00:04]} 6. Bg5 {[%emt 0:00:00][%cal Of3e5] A07: Réti Opening: New York and Capablanca Systems.} h6 {[%emt 0:11:03]} 7. Bxf6 {[%emt 0:00:00] [#]} Nxf6 $146 {[%emt 0:01:58]} ({Predecessor:} 7... Qxf6 8. Nc3 c6 9. e4 d4 10. Ne2 Nf8 11. Nd2 Ng6 12. f4 O-O 13. f5 Ne7 14. Nf3 Qd6 15. g4 f6 16. Ng3 Rf7 17. h4 {½-½ Saifuddin,F (2119)-Abdullah,M (1758) Surabaya Zindgani Cup op 2018 (6)}) 8. Nc3 {[%emt 0:00:00] The position is equal.} Qe7 {[%emt 0:02:54]} 9. Nd2 {[%emt 0:00:00]} c6 {[%emt 0:02:11]} 10. e4 {[%emt 0:00:00][%cal Re4d5]} dxe4 {[%emt 0:03:58]} 11. Ndxe4 {[%emt 0:00:00]} Nxe4 {[%emt 0:00:20]} 12. Nxe4 {[%emt 0:00:00]} Bb6 {[%emt 0:00:25]} 13. a4 {[%emt 0:00:00]} a5 {[%emt 0:01:04]} 14. c3 {[%emt 0:00:00]} O-O {[%emt 0:01:59]} 15. Kh1 {[%emt 0:00:00]} Be6 {[%emt 0:05:12]} 16. f4 {[%emt 0:00:00]} f5 {[%emt 0:04:02]} 17. Nd2 {[%emt 0:00:00]} exf4 {[%emt 0:10:17]} 18. gxf4 {[%emt 0:00:00]} Bc7 $1 {[%emt 0:07:38]} 19. d4 {[%emt 0:00:00]} (19. Nc4 $17) 19... g5 {[%emt 0:14:53]} (19... Rae8 $1 $19 20. b3 g5) 20. Qh5 {[%emt 0:00:00]} Kg7 {[%emt 0:03:40] Wards off Qg6+} (20... gxf4 $2 21. Qg6+ (21. Qxh6 Rf6 $11) 21... Kh8 22. Qxh6+ Qh7 23. Qxe6 $18) (20... Bxf4 21. Rxf4 gxf4 22. Qg6+ (22. Qxh6 Rf6 $17) 22... Qg7 23. Qxe6+ Kh7 24. Nf3 $18) 21. Rae1 {[%emt 0:00:00]} ({Better is} 21. fxg5 Qxg5 22. Qe2) 21... Rae8 {[%emt 0:09:43]} ({Don't do} 21... gxf4 22. Bxc6 (22. Rg1 Kh7 $16) 22... Qf7 23. Qe2 $16) ({Black should try} 21... Bxf4 22. d5 Qf7 23. Qxf7+ Bxf7) 22. fxg5 {[%emt 0:00:00] [#]} Qf6 {[%mdl 8192]} 23. Qd1 $4 {[%mdl 8192]} (23. gxf6+ {mates} Rxf6 24. Qxe8 Rf8 25. Qxe6 Rf6 26. Qe8 Bd6 27. Rg1 Kh7 28. Bd5 Bf8 29. Re7+ {[%mdl 64] Double Attack} Rf7 30. Rxf7+ Kh8 31. Qxf8#) 23... Qxg5 $2 (23... hxg5 $19 24. Nf3 Qh6) 24. Nf3 {[#]} Bf4 {[%mdl 8192]} 25. d5 {[%cal Bd4d5,Bd5e6,Be6e7][%mdl 32]} Qh5 {[#]} 26. Re4 $4 {[%mdl 8192]} Kh7 $4 {[%mdl 8192]} (26... fxe4 $19 27. Qd4+ Kg8) 27. Rxe6 $18 {White is clearly winning.} Rxe6 28. dxe6 Rg8 29. e7 {aiming for Qd7.} Re8 30. Qd7 {[%cal Of3h4] Nh4! would be deadly.} Bb8 31. Qxb7 Bf4 32. Qd7 {[%cal Of3h4] Strongly threatening Nh4!} c5 {[#]} 33. Nh4 $1 {[%emt 0:00:00] A fantastic game!   Weighted Error Value: White=0.92/Black=0.77} 1-0

[Event "10th Cherry Blossom Classic 2023"]
[Site "Dulles"]
[Date "2023.05.28"]
[Round "6.19"]
[White "Ismayilova, Khanim"]
[Black "Girsh, Daniel"]
[Result "0-1"]
[ECO "D46"]
[WhiteElo "1562"]
[BlackElo "2123"]
[Annotator "TA"]
[PlyCount "128"]
[EventDate "2023.05.24"]
[EventType "swiss"]
[EventCountry "USA"]
[SourceTitle "playchess.com"]
[Source "ChessBase"]
[SourceQuality "1"]
[TimeControl "5400+30"]

{[%evp 19,128,0,0,-16,-12,-4,-6,-15,-14,-10,42,-8,23,19,16,8,18,11,11,16,9,7,19,20,70,80,77,105,102,36,140,164,147,62,53,62,43,54,206,213,218,180,632,260,621,242,250,231,256,179,260,0,256,252,231,143,205,38,34,0,170,-8,-8,-8,-10,-12,-12,-14,-14,-44,-55,-361,-448,-408,-72,-80,-8,-633,-611,-1973,-1667,-2200,-1779,-941,-860,-8197,-1787,-1683,-1202,-7511,-5788,-5385,-6029,-29965,-29965,-4041,-1399,-29966,-29967,-29981,-29980,-29982,-29984,-29985,-29986,-29984,-29985,-29984,-29985,-29987,-29988]} 1. c4 {[%emt 0:00:02]} e6 {[%emt 0:16:03]} 2. Nc3 {[%emt 0:00:13]} d5 {[%emt 0:02:05]} 3. e3 {[%emt 0:00:08]} Nf6 {[%emt 0:00:14]} 4. Nf3 {[%emt 0:00:07]} Bd6 {[%emt 0:00:18]} 5. d4 {[%emt 0:00:12]} O-O {[%emt 0:00:07]} 6. Bd3 {[%emt 0:01:18]} Nbd7 {[%emt 0:01:40]} 7. O-O {[%emt 0:02:25]} dxc4 {[%emt 0:00:10]} 8. Bxc4 {[%emt 0:00:14]} c6 {[%emt 0:00:32]} 9. e4 {[%emt 0:07:15]} b5 {[%emt 0:00:07]} 10. Bd3 {[%emt 0:17:35]} e5 {[%emt 0:00:26]} 11. Bg5 {[%emt 0:01:54] D46: Semi-Slav: 5 e3 Nbd7 6 Bd3, Black avoids the Meran.} h6 {[%emt 0:01:43]} 12. Bh4 {[%emt 0:03:25]} exd4 {[%emt 0:01:02]} 13. Nxd4 {[%emt 0:00:13] The position is equal.} Ne5 {[%emt 0:00:09] Threatening ...Bc5.} 14. Be2 {[%emt 0:02:07]} a6 {[%emt 0:13:04] [#]} (14... g5 $11 15. Bg3 b4 16. Bxe5 {[%mdl 64] Remove Defender} Bxe5 17. Nxc6 Bxh2+ {[%mdl 64] Decoy} 18. Kxh2 Qc7+ 19. e5 bxc3) 15. Bg3 $146 {[%emt 0:07:30]} (15. Rc1 $14) ({Predecessor:} 15. Qc2 c5 16. Nf5 Bxf5 17. exf5 Nc6 18. Rad1 Nd4 19. Qd3 Be5 20. f4 Nxe2+ 21. Qxe2 {0-1 Miljkovic,M (2414)-Kharitonov,A (2437) EU-ch U18 Budva 2003 (8)}) 15... b4 {[%emt 0:13:28]} 16. Bxe5 {[%emt 0:01:14][%mdl 64] Remove Defender} Bxe5 {[%emt 0:00:48]} 17. Nxc6 {[%emt 0:00:12][%mdl 64] Discovered Attack, Double Attack} Bxh2+ {[%emt 0:00:57][%mdl 64] Decoy} 18. Kxh2 {[%emt 0:09:37]} Qc7+ {[%emt 0:00:10]} 19. e5 $1 {[%emt 0:05:22]} bxc3 {[%emt 0:00:08]} 20. Qd6 $1 {[%emt 0:13:46]} Qxd6 {[%emt 0:02:22]} 21. exd6 {[%emt 0:00:01]} Bb7 {[%emt 0:06:19]} (21... cxb2 $11 22. Rab1 Re8 23. Rxb2 Bd7 24. Ne7+ Kf8) 22. Ne7+ $14 {[%emt 0:01:58]} Kh8 {[%emt 0:00:21]} 23. bxc3 {[%emt 0:00:28]} Ne4 {[%emt 0:04:34][%csl LRc3,LRd6]} 24. Rab1 {[%emt 0:03:56]} (24. Rad1 $16 {Strongly threatening Bf3.} Nxc3 25. Rd2) 24... Ra7 {[%emt 0:00:12]} (24... Nxd6 $14 25. Rb6 Rfe8 26. Rxd6 Rxe7) 25. Rb6 $36 {[%emt 0:13:35][%mdl 2048] White is really pushing.} Rd8 {[%emt 0:01:52]} 26. c4 {[%emt 0:03:55]} (26. Rd1 $1 $16) 26... Rxd6 $14 {[%emt 0:01:08]} 27. Rxd6 {[%emt 0:00:07]} Nxd6 {[%emt 0:00:11]} 28. Rd1 {[%emt 0:01:05]} Bxg2 $2 {[%emt 0:05:37]} 29. c5 $1 $18 {[%emt 0:00:50]} Ne4 {[%emt 0:03:01]} 30. Nc8 {[%emt 0:01:40]} Ra8 {[%emt 0:02:00]} (30... Rc7) 31. Rd8+ {[%emt 0:00:38]} (31. Kxg2 Rxc8 32. Bxa6 Rxc5 $15) 31... Kh7 {[%emt 0:00:01][%cal Oe4c3]} 32. Kxg2 $2 {[%emt 0:00:15]} (32. c6) 32... Nxc5 {[%emt 0:00:04]} 33. Re8 {[%emt 0:01:14]} Ne6 {[%emt 0:02:39]} 34. Nd6 {[%emt 0:01:13]} Ra7 {[%emt 0:00:02]} (34... Rxe8 {was called for.} 35. Nxe8 Nc5) 35. Nc8 {[%emt 0:01:35]} Ra8 {[%emt 0:00:40]} 36. Bd3+ {[%emt 0:00:16]} g6 {[%emt 0:00:06] And now ...Nf4+ would win.} 37. Kf3 {[%emt 0:00:47] Against Nf4} Nc7 {[%emt 0:01:50]} (37... Kg7 $16 38. Nd6 Rxe8 39. Nxe8+ Kf8) 38. Rd8 $2 {[%emt 0:00:28]} (38. Be4 $1 $18) 38... Ne6 $14 {[%emt 0:00:16]} 39. Re8 {[%emt 0:00:33]} (39. Be4 $14) 39... Nc7 $1 $18 {[%emt 0:00:31] [#]} 40. Bxg6+ $2 {[%emt 0:00:29]} Kxg6 {[%emt 0:00:18][%mdl 4096] Endgame KRN-KRN} 41. Ne7+ {[%emt 0:00:31]} Kg5 {[%emt 0:00:39]} 42. Rxa8 {[%emt 0:00:28]} Nxa8 $11 {[%emt 0:00:01] KN-KN} 43. Nd5 {[%emt 0:00:17] Wards off Nc7} Kf5 {[%emt 0:00:05]} 44. Ne7+ {[%emt 0:00:36]} Ke6 {[%emt 0:00:17]} 45. Ng8 {[%emt 0:00:33][%mdl 8192]} (45. Nc6 $15) 45... h5 $19 {[%emt 0:00:41]} 46. Kf4 {[%emt 0:00:37]} a5 $2 {[%emt 0:00:05]} (46... f6 $19 {and Black stays clearly on top.} 47. Kg3 Nc7) 47. Kg5 $17 {[%emt 0:00:09][%cal Of2f4]} a4 {[%emt 0:00:20]} (47... Nb6 $17 {...Na4 would be deadly.} 48. f4 Nd5 49. f5+ Kd6 50. Kxh5 Nc3) 48. Nh6 $2 {[%emt 0:00:12][%mdl 8192]} (48. f4 $11) 48... Nc7 $19 {[%emt 0:00:42]} 49. Kxh5 {[%emt 0:00:11]} Nb5 {[%emt 0:00:37]} 50. Ng4 {[%emt 0:01:01]} Nc3 {[%emt 0:00:06]} 51. Ne3 {[%emt 0:00:11]} Nxa2 {[%emt 0:25:12]} 52. Nc2 {[%emt 0:01:16] Against Nb4} Kf5 {[%emt 0:00:00]} (52... Kd5 $142 53. Kg5 Kc4) 53. Kh6 {[%emt 0:00:31]} Ke4 {[%emt 0:00:00] aiming for ...Kd3.} 54. Kg7 {[%emt 0:00:19]} f5 {[%emt 0:00:00]} 55. Kf6 {[%emt 0:00:04]} Nc3 {[%emt 0:00:00]} 56. f3+ {[%emt 0:00:45]} Kf4 {[%emt 0:00:00]} (56... Kxf3 57. Kxf5 Kg3 58. Ke5 $11) 57. Ke6 {[%emt 0:00:13]} Nb1 {[%emt 0:00:00]} ({Inferior is} 57... Kxf3 58. Kxf5 Kg3 59. Ke5 $11) (57... Nd1 $142 58. Na3 Ne3) 58. Nb4 {[%emt 0:00:54]} a3 {[%emt 0:00:00] Black mates.} ({And not} 58... Kxf3 59. Kxf5 Kf2 60. Ke4 $11) 59. Nd3+ {[%emt 0:00:16]} Ke3 {[%emt 0:00:00]} 60. Nb4 {[%emt 0:00:19]} f4 {[%emt 0:00:00][%cal Bf5f4,Bf4f3][%mdl 32]} ({Stronger than} 60... Kxf3 61. Kxf5 Kg2 62. Ke4 $11) 61. Ke5 {[%emt 0:00:27]} Kxf3 {[%emt 0:00:00]} 62. Kd4 {[%emt 0:00:09]} Ke2 {[%emt 0:00:00]} 63. Nd3 {[%emt 0:00:09]} f3 {[%emt 0:00:00]} 64. Kc4 {[%emt 0:00:09]} a2 {[%emt 0:00:00] Black used his chance.   Weighted Error Value: White=0.97/Black=0.63} 0-1

[Event "10th Cherry Blossom Classic 2023"]
[Site "Dulles"]
[Date "2023.05.28"]
[Round "6.20"]
[White "Brady, Tyson"]
[Black "Ling, Evan"]
[Result "1/2-1/2"]
[ECO "D00"]
[WhiteElo "2092"]
[BlackElo "1952"]
[Annotator "NA RC"]
[PlyCount "66"]
[EventDate "2023.05.24"]
[EventType "swiss"]
[EventCountry "USA"]
[SourceTitle "playchess.com"]
[Source "ChessBase"]
[SourceQuality "1"]
[TimeControl "5400+30"]

1. d4 {[%emt 0:00:02]} d5 {[%emt 0:00:08]} 2. Nc3 {[%emt 0:00:03]} Nf6 {[%emt 0:00:08]} 3. Bf4 {[%emt 0:00:04]} e6 {[%emt 0:00:26]} 4. Nb5 {[%emt 0:00:03]} Bb4+ {[%emt 0:00:19]} 5. c3 {[%emt 0:00:11]} Ba5 {[%emt 0:00:07]} 6. a4 {[%emt 0:01:50]} a6 {[%emt 0:00:19]} 7. Na3 {[%emt 0:04:37]} O-O {[%emt 0:04:52]} 8. Nf3 {[%emt 0:00:12]} c5 {[%emt 0:03:39]} 9. dxc5 {[%emt 0:04:24]} Ne4 {[%emt 0:03:35]} 10. Nd2 {[%emt 0:04:45]} Nxf2 {[%emt 0:03:01]} 11. Kxf2 {[%emt 0:00:12]} Qf6 {[%emt 0:00:02]} 12. Nf3 {[%emt 0:02:11]} Qxf4 {[%emt 0:03:19]} 13. g3 {[%emt 0:01:02]} Qf6 {[%emt 0:09:11]} 14. Qd4 {[%emt 0:01:41]} Qe7 {[%emt 0:02:15]} 15. b4 {[%emt 0:00:54]} Nc6 {[%emt 0:00:06]} 16. Qh4 {[%emt 0:00:56]} Bd8 {[%emt 0:07:01]} 17. Qxe7 {[%emt 0:00:06]} Bxe7 {[%emt 0:00:07]} 18. Nd4 {[%emt 0:02:50]} Bd7 {[%emt 0:01:29]} 19. e3 {[%emt 0:10:26]} Ne5 {[%emt 0:05:12]} 20. Nac2 {[%emt 0:03:56]} Ng4+ {[%emt 0:01:30]} 21. Ke2 {[%emt 0:04:40]} a5 {[%emt 0:04:33]} 22. Bg2 {[%emt 0:10:16]} axb4 {[%emt 0:00:41]} 23. cxb4 {[%emt 0:00:04]} Bxa4 {[%emt 0:00:14]} 24. h3 {[%emt 0:12:37]} Nf6 {[%emt 0:05:31]} 25. Na3 {[%emt 0:00:20]} b6 {[%emt 0:09:05]} 26. cxb6 {[%emt 0:01:57]} Nd7 {[%emt 0:07:13]} 27. Nc4 {[%emt 0:06:31]} Rfb8 {[%emt 0:03:50]} 28. Nb2 {[%emt 0:05:36]} Nxb6 {[%emt 0:03:28]} 29. Nxa4 {[%emt 0:00:05]} Nxa4 {[%emt 0:02:51]} 30. Nc6 {[%emt 0:00:10]} Re8 {[%emt 0:01:31]} 31. Nxe7+ {[%emt 0:00:06]} Rxe7 {[%emt 0:00:04]} 32. e4 {[%emt 0:02:32]} Rea7 {[%emt 0:05:04]} 33. Ke3 {[%emt 0:01:07]} Nb6 {[%emt 0:06:26]} 1/2-1/2